fUSD/lending_fUSD_20260228
["ID","MTS","AMOUNT","RATE_DAILY","PERIOD"]
[406883395,1772264547710,-552.16,0.00049315,120]
[406883396,1772264547766,-552.36369313,0.00049315,120]
[406883397,1772264547819,-500.0,0.00049315,120]
[406883398,1772264547871,-500.0,0.00049315,120]
[406883399,1772264547925,-500.0,0.00049315,120]
[406883400,1772264547978,-500.0,0.00049315,120]
[406883401,1772264548033,-500.0,0.00049315,120]
[406883402,1772264548085,-500.0,0.00049315,120]
[406883403,1772264548141,-500.0,0.00049315,120]
[406883404,1772264548193,-500.0,0.00049315,120]
[406883405,1772264548250,-450.51739035,0.00049315,120]
[406883406,1772264548304,-224.16111404,0.00049315,120]
[406883407,1772264548365,-500.0,0.00049315,120]
[406883408,1772264548416,-500.0,0.00049315,120]
[406883409,1772264548467,-500.0,0.00049315,120]
[406883410,1772264548518,-500.0,0.00049315,120]
[406883411,1772264548567,-500.0,0.00049315,120]
[406883412,1772264548620,-500.0,0.00049315,120]
[406883413,1772264548672,-500.0,0.00049315,120]
[406883414,1772264548725,-556.20362693,0.00049315,120]
[406883415,1772264548778,-1606.9,0.00049315,120]
[406883416,1772264548827,-1606.9,0.00049315,120]
[406883417,1772264548878,-1606.9,0.00049315,120]
[406883418,1772264548927,-1606.9,0.00049315,120]
[406883419,1772264548975,-1606.9,0.00049315,120]
[406883420,1772264549022,-1606.9,0.00049315,120]
[406883421,1772264549071,-1606.9,0.00049315,120]
[406883422,1772264549124,-1606.9,0.00049315,120]
[406883423,1772264549173,-1606.9,0.00049315,120]
[406883424,1772264549223,-1606.9,0.00049315,120]
[406883425,1772264549274,-1606.9,0.00049315,120]
[406883426,1772264549322,-1606.9,0.00049315,120]
[406883427,1772264549373,-1606.9,0.00049315,120]
[406883428,1772264549423,-1606.9,0.00049315,120]
[406883429,1772264549473,-1606.9,0.00049315,120]
[406883430,1772264549523,-1606.9,0.00049315,120]
[406883431,1772264549574,-1606.9,0.00049315,120]
[406883432,1772264549624,-1606.9,0.00049315,120]
[406883433,1772264549679,-1606.9,0.00049315,120]
[406883434,1772264549732,-1606.9,0.00049315,120]
[406883435,1772264549784,-1606.9,0.00049315,120]
[406883436,1772264549835,-1606.9,0.00049315,120]
[406883437,1772264549889,-1606.9,0.00049315,120]
[406883438,1772264549941,-1607.12813283,0.00049315,120]
[406883439,1772264549996,-337.39293876,0.00049315,120]
[406883440,1772264550053,-695.42,0.00049315,120]
[406883441,1772264550107,-695.42,0.00049315,120]
[406883442,1772264550162,-695.42,0.00049315,120]
[406883443,1772264550213,-695.42,0.00049315,120]
[406883444,1772264550268,-695.42,0.00049315,120]
[406883445,1772264550321,-695.42,0.00049315,120]
[406883446,1772264550378,-695.42,0.00049315,120]
[406883447,1772264550434,-695.42,0.00049315,120]
[406883448,1772264550487,-695.42,0.00049315,120]
[406883449,1772264550540,-695.42,0.00049315,120]
[406883450,1772264550592,-695.42,0.00049315,120]
[406883451,1772264550644,-695.42,0.00049315,120]
[406883452,1772264550697,-695.42,0.00049315,120]
[406883453,1772264550750,-695.42,0.00049315,120]
[406883454,1772264550804,-695.42,0.00049315,120]
[406883455,1772264550856,-695.42,0.00049315,120]
[406883456,1772264550909,-695.42,0.00049315,120]
[406883457,1772264550960,-695.42,0.00049315,120]
[406883458,1772264551012,-695.42,0.00049315,120]
[406883459,1772264551065,-695.42,0.00049315,120]
[406883460,1772264551119,-695.42,0.00049315,120]
[406883461,1772264551172,-695.42,0.00049315,120]
[406883462,1772264551227,-695.42,0.00049315,120]
[406883463,1772264551285,-695.44375809,0.00049315,120]
[406883464,1772264551340,-500.0,0.00049315,120]
[406883465,1772264551399,-500.0,0.00049315,120]
[406883466,1772264551459,-500.0,0.00049315,120]
[406883467,1772264551510,-500.0,0.00049315,120]
[406883468,1772264551563,-438.0,0.00049315,120]
[406883469,1772264551612,-500.0,0.00049315,120]
[406883470,1772264551663,-500.0,0.00049315,120]
[406883471,1772264551715,-500.0,0.00049315,120]
[406883472,1772264551771,-500.0,0.00049315,120]
[406883473,1772264551825,-500.0,0.00049315,120]
[406883474,1772264551877,-500.0,0.00049315,120]
[406883475,1772264552041,-500.0,0.00049315,120]
[406883476,1772264552101,-500.0,0.00049315,120]
[406883477,1772264552161,-500.0,0.00049315,120]
[406883478,1772264552216,-500.0,0.00049315,120]
[406883479,1772264552276,-500.0,0.00049315,120]
[406883480,1772264552337,-500.0,0.00049315,120]
[406883481,1772264552396,-500.0,0.00049315,120]
[406883482,1772264552452,-500.0,0.00049315,120]
[406883483,1772264552506,-242.90181906,0.00049315,120]
[406883484,1772264552566,-234921.834926,0.00049315,120]
[406883485,1772264552622,-500.0,0.00049315,120]
[406883486,1772264552687,-500.0,0.00049315,120]
[406883487,1772264552747,-540.43430317,0.00049315,120]
[406883488,1772264552801,-500.0,0.00049315,120]
[406883489,1772264552857,-500.0,0.00049315,120]
[406883490,1772264552909,-500.0,0.00049315,120]
[406883491,1772264552966,-500.0,0.00049315,120]
[406883492,1772264553021,-500.0,0.00049315,120]
[406883493,1772264553072,-500.0,0.00049315,120]
[406883494,1772264553122,-500.0,0.00049315,120]
[406883495,1772264553175,-500.0,0.00049315,120]
[406883496,1772264553226,-500.0,0.00049315,120]
[406883497,1772264553278,-500.0,0.00049315,120]
[406883498,1772264553330,-191.13537411,0.00049315,120]
[406883499,1772264553385,-500.0,0.00049315,120]
[406883500,1772264553436,-500.0,0.00049315,120]
[406883501,1772264553488,-500.0,0.00049315,120]
[406883502,1772264553539,-500.0,0.00049315,120]
[406883503,1772264553591,-500.0,0.00049315,120]
[406883504,1772264553641,-500.0,0.00049315,120]
[406883505,1772264553698,-500.0,0.00049315,120]
[406883506,1772264553759,-500.0,0.00049315,120]
[406883507,1772264553815,-500.0,0.00049315,120]
[406883508,1772264553869,-500.0,0.00049315,120]
[406883509,1772264553924,-500.0,0.00049315,120]
[406883510,1772264553977,-534.42812608,0.00049315,120]
[406883511,1772264554028,-328.79066994,0.00049315,120]
[406883512,1772264554079,-182.07710975,0.00049315,30]
[406883513,1772264554129,-181.54925701,0.00049315,120]
[406883514,1772264554179,-2500.0,0.00049315,120]
[406883515,1772264554232,-1490.00436683,0.00049315,120]
[406883516,1772264554280,-500.0,0.00049315,120]
[406883517,1772264554330,-500.0,0.00049315,120]
[406883518,1772264554383,-500.0,0.00049315,120]
[406883519,1772264554429,-500.0,0.00049315,120]
[406883520,1772264554479,-500.0,0.00049315,120]
[406883521,1772264554527,-500.0,0.00049315,120]
[406883522,1772264554574,-500.0,0.00049315,120]
[406883523,1772264554621,-500.0,0.00049315,120]
[406883524,1772264554668,-500.0,0.00049315,120]
[406883525,1772264554716,-500.0,0.00049315,120]
[406883526,1772264554766,-500.0,0.00049315,120]
[406883527,1772264554823,-506.0,0.00049315,120]
[406883528,1772264554874,-500.0,0.00049315,120]
[406883529,1772264554931,-502.90607153,0.00049315,120]
[406883530,1772264554981,-500.0,0.00049315,120]
[406883531,1772264555031,-536.1668077,0.00049315,120]
[406883532,1772264555083,-500.0,0.00049315,120]
[406883533,1772264555136,-500.0,0.00049315,120]
[406883534,1772264555190,-500.0,0.00049315,120]
[406883535,1772264555248,-500.0,0.00049315,120]
[406883536,1772264555303,-500.0,0.00049315,120]
[406883537,1772264555356,-500.0,0.00049315,120]
[406883538,1772264555409,-500.0,0.00049315,120]
[406883539,1772264555462,-500.0,0.00049315,120]
[406883540,1772264555515,-500.0,0.00049315,120]
[406883541,1772264555571,-500.0,0.00049315,120]
[406883542,1772264555622,-500.0,0.00049315,120]
[406883543,1772264555675,-500.0,0.00049315,120]
[406883544,1772264555733,-612.61468761,0.00049315,120]
[406883545,1772264555786,-196.22348736,0.00049315,120]
[406883546,1772264555838,-175.96630577,0.00049315,120]
[406883547,1772264555893,-461.29,0.00049315,120]
[406883548,1772264555944,-153.03143577,0.00049321,120]
[406883549,1772264556003,-54543.30509943,0.00049333,120]
[406883550,1772264556060,-2273.6849,0.00049339,120]
[406883551,1772264556119,-2273.6849,0.00049339,120]
[406883552,1772264556177,-2273.6849,0.00049339,120]
[406883553,1772264556235,-2273.6849,0.00049339,120]
[406883554,1772264556286,-2273.6849,0.00049339,120]
[406883555,1772264556338,-2273.6849,0.00049339,120]
[406883556,1772264556523,-2273.6849,0.00049339,120]
[406883557,1772264556575,-2273.6849,0.00049339,120]
[406883558,1772264556635,-2273.6849,0.00049339,120]
[406883559,1772264556687,-2273.6849,0.00049339,120]
[406883560,1772264556741,-2273.6849,0.00049339,120]
[406883561,1772264556797,-2273.6849,0.00049339,120]
[406883562,1772264556848,-2273.6849,0.00049339,120]
[406883563,1772264556897,-2273.6849,0.00049339,120]
[406883564,1772264556945,-2273.6849,0.00049339,120]
[406883565,1772264556994,-2273.6849,0.00049339,120]
[406883566,1772264557042,-2273.6849,0.00049339,120]
[406883567,1772264557089,-2273.6849,0.00049339,120]
[406883568,1772264557144,-2273.6849,0.00049339,120]
[406883569,1772264557193,-2273.68536164,0.00049339,120]
[406883570,1772264557241,-328.0,0.00049359,31]
[406883571,1772264557291,-10012.0010991,0.000494,120]
[406883572,1772264557340,-10000.0,0.000494,120]
[406883573,1772264557390,-150.0,0.00049431,30]
[406883574,1772264557439,-153.66875,0.0004944,30]
[406883575,1772264557490,-150.0,0.0004944,30]
[406883576,1772264557541,-849.0,0.00049451,30]
[406883577,1772264557590,-285.0,0.00049451,30]
[406883578,1772264557638,-849.0,0.00049451,30]
[406883579,1772264557687,-849.0,0.00049451,30]
[406883580,1772264557750,-599.85892847,0.00049451,30]
[406883581,1772264557804,-998.0,0.00049451,30]
[406883582,1772264557855,-645.0,0.00049451,30]
[406883583,1772264557904,-495.0,0.00049451,30]
[406883584,1772264557956,-150.0,0.00049494,30]
[406883585,1772264558012,-500.0,0.00049498,120]
[406883586,1772264558069,-500.0,0.00049499,120]
[406883587,1772264558123,-500.0,0.00049499,120]
[406883588,1772264558178,-500.0,0.00049499,120]
[406883589,1772264558230,-500.0,0.00049499,120]
[406883590,1772264558281,-500.0,0.00049499,120]
[406883591,1772264558333,-500.0,0.00049499,120]
[406883592,1772264558388,-500.0,0.00049499,120]
[406883593,1772264558441,-375.40855789,0.00049499,120]
[406883594,1772264558492,-315.8671427,0.00049499,30]
[406883595,1772264558543,-600.0,0.00049499,60]
[406883596,1772264558591,-600.0,0.00049499,60]
[406883597,1772264558641,-178.62635693,0.00049499,120]
[406883598,1772264558696,-151.0,0.00049499,120]
[406883599,1772264558745,-151.0,0.00049499,120]
[406883600,1772264558795,-151.0,0.00049499,120]
[406883601,1772264558846,-673190.13956136,0.000495,120]
[406883602,1772264559825,1526.51104808,7.9e-05,3]
[406883603,1772264577293,-151.0,0.000371,31]
[406883604,1772264577355,-232.145,0.00040918,59]
[406883605,1772264577425,-500.0,0.00045,60]
[406883606,1772264577478,-500.0,0.00045,60]
[406883607,1772264577532,-500.0,0.00045,60]
[406883608,1772264577583,-500.0,0.00045,60]
[406883609,1772264577635,-500.0,0.00045,60]
[406883610,1772264577824,-500.0,0.00045,60]
[406883611,1772264577888,-500.0,0.00045,60]
[406883612,1772264577946,-501.73395608,0.00045,60]
[406883613,1772264578003,-500.0,0.00045,60]
[406883614,1772264578058,-500.0,0.00045,60]
[406883615,1772264578113,-500.0,0.00045,60]
[406883616,1772264578168,-500.0,0.00045,60]
[406883617,1772264578221,-501.69063907,0.00045,60]
[406883618,1772264578273,-500.0,0.00045,60]
[406883619,1772264578329,-500.0,0.00045,60]
[406883620,1772264578385,-500.0,0.00045,60]
[406883621,1772264578446,-500.0,0.00045,60]
[406883622,1772264578503,-500.0,0.00045,60]
[406883623,1772264578556,-500.0,0.00045,60]
[406883624,1772264578613,-500.0,0.00045,60]
[406883625,1772264578671,-500.0,0.00045,60]
[406883626,1772264578725,-500.0,0.00045,60]
[406883627,1772264578778,-500.0,0.00045,60]
[406883628,1772264578836,-500.0,0.00045,60]
[406883629,1772264578889,-500.0,0.00045,60]
[406883630,1772264578946,-500.0,0.00045,60]
[406883631,1772264579000,-500.0,0.00045,60]
[406883632,1772264579059,-500.0,0.00045,60]
[406883633,1772264579117,-500.0,0.00045,60]
[406883634,1772264579185,-500.0,0.00045,60]
[406883635,1772264579237,-500.0,0.00045,60]
[406883636,1772264579292,-501.90684681,0.00045,60]
[406883637,1772264579350,-500.0,0.00045,60]
[406883638,1772264579406,-500.0,0.00045,60]
[406883639,1772264579466,-500.0,0.00045,60]
[406883640,1772264579522,-600.0,0.00045,60]
[406883641,1772264579581,-500.0,0.00045,60]
[406883642,1772264579638,-500.0,0.00045,60]
[406883643,1772264579698,-600.0,0.00045,60]
[406883644,1772264579756,-500.0,0.00045,60]
[406883645,1772264579812,-500.0,0.00045,60]
[406883646,1772264579870,-900.23919341,0.00045,60]
[406883647,1772264579932,-600.0,0.00045,60]
[406883648,1772264579987,-500.0,0.00045,60]
[406883649,1772264580059,-500.0,0.00045,60]
[406883650,1772264580120,-600.0,0.00045,60]
[406883651,1772264580180,-500.0,0.00045,60]
[406883652,1772264580238,-500.0,0.00045,60]
[406883653,1772264580300,-600.0,0.00045,60]
[406883654,1772264580357,-500.0,0.00045,60]
[406883655,1772264580417,-500.0,0.00045,60]
[406883656,1772264580475,-600.0,0.00045,60]
[406883657,1772264580535,-500.0,0.00045,60]
[406883658,1772264580594,-500.0,0.00045,60]
[406883659,1772264580653,-600.0,0.00045,60]
[406883660,1772264580712,-532.01062926,0.00045,60]
[406883661,1772264580771,-500.0,0.00045,60]
[406883662,1772264580835,-600.0,0.00045,60]
[406883663,1772264580892,-500.0,0.00045,60]
[406883664,1772264580960,-500.0,0.00045,60]
[406883665,1772264581022,-600.0,0.00045,60]
[406883666,1772264581080,-504.40204054,0.00045,60]
[406883667,1772264581135,-503.76298871,0.00045,60]
[406883668,1772264581195,-500.0,0.00045,60]
[406883669,1772264581249,-500.0,0.00045,60]
[406883670,1772264581305,-600.0,0.00045,60]
[406883671,1772264581363,-500.0,0.00045,60]
[406883672,1772264581417,-500.0,0.00045,60]
[406883673,1772264581475,-600.0,0.00045,60]
[406883674,1772264581531,-500.0,0.00045,60]
[406883675,1772264581589,-500.0,0.00045,60]
[406883676,1772264581645,-600.0,0.00045,60]
[406883677,1772264581710,-500.0,0.00045,60]
[406883678,1772264581763,-500.0,0.00045,60]
[406883679,1772264581819,-500.0,0.00045,60]
[406883680,1772264581874,-600.0,0.00045,60]
[406883681,1772264582097,-500.0,0.00045,60]
[406883682,1772264582157,-500.0,0.00045,60]
[406883683,1772264582214,-710.68871512,0.00045,60]
[406883684,1772264582271,-600.0,0.00045,60]
[406883685,1772264582329,-500.0,0.00045,60]
[406883686,1772264582385,-600.0,0.00045,60]
[406883687,1772264582439,-500.0,0.00045,60]
[406883688,1772264582496,-500.0,0.00045,60]
[406883689,1772264582551,-600.0,0.00045,60]
[406883690,1772264582607,-600.0,0.00045,60]
[406883691,1772264582661,-500.0,0.00045,60]
[406883692,1772264582716,-500.0,0.00045,60]
[406883693,1772264582771,-600.0,0.00045,60]
[406883694,1772264582826,-857.72157108,0.00045,60]
[406883695,1772264582879,-500.0,0.00045,60]
[406883696,1772264582932,-600.0,0.00045,60]
[406883697,1772264582988,-600.0,0.00045,60]
[406883698,1772264583041,-500.0,0.00045,60]
[406883699,1772264583094,-600.0,0.00045,60]
[406883700,1772264583151,-600.0,0.00045,60]
[406883701,1772264583202,-600.0,0.00045,60]
[406883702,1772264583257,-670.0,0.00045,60]
[406883703,1772264583310,-600.0,0.00045,60]
[406883704,1772264583365,-1000.0,0.00045,60]
[406883705,1772264583420,-843.0,0.00046252,120]
[406883706,1772264583474,-664.7,0.00046649,120]
[406883707,1772264583531,-843.0,0.000468,120]
[406883708,1772264583589,-843.0,0.00047348,120]
[406883709,1772264583647,-843.0,0.00047896,120]
[406883710,1772264583702,-885.01,0.00048444,120]
[406883711,1772264583758,-423.13961702,0.00049165,120]
[406883712,1772264583813,-500.0,0.00049315,120]
[406883713,1772264583870,-263.66769372,0.00049315,120]
[406883714,1772264583927,-150.0,0.00049348,30]
[406883715,1772264583980,-150.0,0.00049353,30]
[406883716,1772264584033,-152.27667,0.000494,120]
[406883717,1772264584085,-150.0,0.00049406,30]
[406883718,1772264584135,-150.0,0.00049408,30]
[406883719,1772264584191,-150.0,0.00049409,30]
[406883720,1772264584244,-150.0,0.00049437,30]
[406883721,1772264584297,-150.0,0.00049446,30]
[406883722,1772264584348,-150.0,0.00049464,30]
[406883723,1772264584408,-150.0,0.00049486,30]
[406883724,1772264584464,-2282613.06891807,0.000495,120]
[406883725,1772264584518,-420.43,0.000495,120]
[406883726,1772264584572,-20000.0,0.000495,120]
[406883727,1772264584623,-500.0,0.000495,120]
[406883728,1772264584674,-200.0,0.000495,60]
[406883729,1772264584725,-363.68147413,0.00049504,120]
[406883730,1772264584776,-150.0,0.00049569,30]
[406883731,1772264584830,-15255.72813629,0.00049573,30]
[406883732,1772264584883,-367.19296352,0.00049628,30]
[406883733,1772264584935,-963.0,0.00049679,31]
[406883734,1772264584988,-5616.24,0.000497,120]
[406883735,1772264585043,-164.37,0.000497,30]
[406883736,1772264585099,-9464.13369397,0.000497,120]
[406883737,1772264585157,-50000.0,0.000498,50]
[406883738,1772264585211,-50000.0,0.000498,55]
[406883739,1772264585267,-50000.0,0.000498,60]
[406883740,1772264585327,-50000.0,0.000498,65]
[406883741,1772264585386,-19630.26352386,0.00049801,30]
[406883742,1772264585442,-911.4633,0.0004987,78]
[406883743,1772264585497,-516.46,0.0004987,120]
[406883744,1772264585551,-272.78593889,0.000499,120]
[406883745,1772264585607,-179.09844544,0.000499,120]
[406883746,1772264585662,-184.0674911,0.000499,120]
[406883747,1772264585719,-185.83262235,0.000499,120]
[406883748,1772264585780,-164.19616738,0.000499,120]
[406883749,1772264585947,-161.28679942,0.000499,120]
[406883750,1772264586004,-166.68625954,0.000499,120]
[406883751,1772264586061,-1191.64965332,0.000499,120]
[406883752,1772264586116,-3000.0,0.000499,120]
[406883753,1772264586171,-530.0,0.000499,90]
[406883754,1772264586231,-644.7214,0.000499,90]
[406883755,1772264586291,-1229.885,0.000499,120]
[406883756,1772264586349,-1229.88,0.000499,120]
[406883757,1772264586405,-9913.58261925,0.0004995,120]
[406883758,1772264586462,-9976.87320112,0.00049962,30]
[406883759,1772264586519,-484.4584484,0.00049999,120]
[406883760,1772264586575,-500.0,0.00049999,120]
[406883761,1772264586630,-422.34185998,0.00049999,120]
[406883762,1772264586688,-500.0,0.00049999,120]
[406883763,1772264586743,-500.0,0.00049999,120]
[406883764,1772264586808,-500.0,0.00049999,120]
[406883765,1772264586876,-500.0,0.00049999,120]
[406883766,1772264586939,-500.0,0.00049999,120]
[406883767,1772264587002,-500.0,0.00049999,120]
[406883768,1772264587065,-500.0,0.00049999,120]
[406883769,1772264587125,-274.25311056,0.00049999,120]
[406883770,1772264587189,-500.0,0.00049999,120]
[406883771,1772264587253,-224.74240491,0.00049999,120]
[406883772,1772264587320,-500.0,0.00049999,120]
[406883773,1772264587391,-500.0,0.00049999,120]
[406883774,1772264587452,-500.0,0.00049999,120]
[406883775,1772264587514,-500.0,0.00049999,120]
[406883776,1772264587568,-500.0,0.00049999,120]
[406883777,1772264587621,-500.0,0.00049999,120]
[406883778,1772264587677,-500.0,0.00049999,120]
[406883779,1772264587732,-500.0,0.00049999,120]
[406883780,1772264587790,-500.0,0.00049999,120]
[406883781,1772264587844,-500.0,0.00049999,120]
[406883782,1772264587897,-500.0,0.00049999,120]
[406883783,1772264587952,-500.0,0.00049999,120]
[406883784,1772264588007,-500.0,0.00049999,120]
[406883785,1772264588062,-365.70451048,0.00049999,120]
[406883786,1772264588117,-500.0,0.00049999,120]
[406883787,1772264588171,-500.0,0.00049999,120]
[406883788,1772264588226,-500.0,0.00049999,120]
[406883789,1772264588283,-500.0,0.00049999,120]
[406883790,1772264588343,-500.0,0.00049999,120]
[406883791,1772264588399,-500.0,0.00049999,120]
[406883792,1772264588458,-500.0,0.00049999,120]
[406883793,1772264588517,-500.0,0.00049999,120]
[406883794,1772264588576,-500.0,0.00049999,120]
[406883795,1772264588633,-500.0,0.00049999,120]
[406883796,1772264588689,-500.0,0.00049999,120]
[406883797,1772264588748,-500.0,0.00049999,120]
[406883798,1772264588804,-500.0,0.00049999,120]
[406883799,1772264588859,-500.0,0.00049999,120]
[406883800,1772264588915,-500.0,0.00049999,120]
[406883801,1772264588975,-500.0,0.00049999,120]
[406883802,1772264589030,-500.0,0.00049999,120]
[406883803,1772264589086,-500.0,0.00049999,120]
[406883804,1772264589141,-500.0,0.00049999,120]
[406883805,1772264589200,-500.0,0.00049999,120]
[406883806,1772264589255,-500.0,0.00049999,120]
[406883807,1772264589312,-500.0,0.00049999,120]
[406883808,1772264589369,-500.0,0.00049999,120]
[406883809,1772264589425,-500.0,0.00049999,120]
[406883810,1772264589482,-500.0,0.00049999,120]
[406883811,1772264589540,-500.0,0.00049999,120]
[406883812,1772264589597,-500.0,0.00049999,120]
[406883813,1772264589651,-500.0,0.00049999,120]
[406883814,1772264589708,-209.71135315,0.00049999,120]
[406883815,1772264589863,-500.0,0.00049999,120]
[406883816,1772264589929,-500.0,0.00049999,120]
[406883817,1772264589996,-500.0,0.00049999,120]
[406883818,1772264590059,-500.0,0.00049999,120]
[406883819,1772264590120,-500.0,0.00049999,120]
[406883820,1772264590182,-500.0,0.00049999,120]
[406883821,1772264590247,-500.0,0.00049999,120]
[406883822,1772264590305,-500.0,0.00049999,120]
[406883823,1772264590366,-500.0,0.00049999,120]
[406883824,1772264590423,-500.0,0.00049999,120]
[406883825,1772264590482,-500.0,0.00049999,120]
[406883826,1772264590544,-500.0,0.00049999,120]
[406883827,1772264590602,-500.0,0.00049999,120]
[406883828,1772264590660,-500.0,0.00049999,120]
[406883829,1772264590719,-500.0,0.00049999,120]
[406883830,1772264590776,-342.58911402,0.00049999,120]
[406883831,1772264590836,-500.0,0.00049999,120]
[406883832,1772264590894,-508.33020262,0.00049999,120]
[406883833,1772264590951,-527.25179187,0.00049999,120]
[406883834,1772264591005,-527.25179187,0.00049999,120]
[406883835,1772264591061,-527.25179187,0.00049999,120]
[406883836,1772264591114,-527.25179187,0.00049999,120]
[406883837,1772264591175,-527.25179187,0.00049999,120]
[406883838,1772264591231,-527.25179187,0.00049999,120]
[406883839,1772264591291,-527.25179187,0.00049999,120]
[406883840,1772264591346,-527.25179187,0.00049999,120]
[406883841,1772264591403,-527.25179187,0.00049999,120]
[406883842,1772264591468,-527.25179187,0.00049999,120]
[406883843,1772264591530,-527.25179187,0.00049999,120]
[406883844,1772264591587,-527.25179187,0.00049999,120]
[406883845,1772264591645,-527.25179187,0.00049999,120]
[406883846,1772264591703,-527.25179187,0.00049999,120]
[406883847,1772264591763,-527.25179187,0.00049999,120]
[406883848,1772264591823,-527.25179187,0.00049999,120]
[406883849,1772264591883,-527.25179187,0.00049999,120]
[406883850,1772264591942,-527.25179187,0.00049999,120]
[406883851,1772264592004,-527.25179187,0.00049999,120]
[406883852,1772264592066,-522.85802696,0.00049999,120]
[406883853,1772264592127,-522.85802696,0.00049999,120]
[406883854,1772264592189,-522.85802696,0.00049999,120]
[406883855,1772264592245,-296.60721331,0.00049999,120]
[406883856,1772264592300,-546.10847595,0.00049999,120]
[406883857,1772264592358,-395.28936856,0.00049999,120]
[406883858,1772264592412,-596.31817353,0.00049999,120]
[406883859,1772264592467,-500.0,0.00049999,120]
[406883860,1772264592522,-500.0,0.00049999,120]
[406883861,1772264592581,-1434286.95012589,0.0005,120]
[406883862,1772264592639,-251491.24,0.0005,120]
[406883863,1772264592702,-615724.32434376,0.0005,120]
[406883864,1772264632782,-291.02,0.00037,30]
[406883865,1772264632855,-151.0,0.0004,120]
[406883866,1772264632915,-151.0,0.0004,120]
[406883867,1772264632974,-151.0,0.0004,120]
[406883868,1772264633032,-199.822189,0.0004,120]
[406883869,1772264633094,-786.69,0.000404,30]
[406883870,1772264633170,-786.69,0.000423,30]
[406883871,1772264633244,-786.69,0.000438,30]
[406883872,1772264633309,-2174.79,0.00045,120]
[406883873,1772264633375,-3743.59,0.00045,120]
[406883874,1772264633448,-786.69,0.000463,30]
[406883875,1772264633511,-2174.79,0.0004725,120]
[406883876,1772264633576,-3743.59,0.0004725,120]
[406883877,1772264633651,-786.69,0.000492,30]
[406883878,1772264633719,-511.55559244,0.00049315,120]
[406883879,1772264633788,-517.18464319,0.00049315,120]
[406883880,1772264633852,-150.0,0.00049499,120]
[406883881,1772264633914,-500.0,0.00049499,120]
[406883882,1772264633979,-500.0,0.00049499,120]
[406883883,1772264634048,-500.0,0.00049499,120]
[406883884,1772264634107,-500.0,0.00049499,120]
[406883885,1772264634171,-500.0,0.00049499,120]
[406883886,1772264634233,-500.0,0.00049499,120]
[406883887,1772264634295,-500.0,0.00049499,120]
[406883888,1772264634362,-596.27114591,0.00049499,120]
[406883889,1772264634431,-150.0,0.00049499,120]
[406883890,1772264634499,-150.0,0.00049499,120]
[406883891,1772264634565,-150.0,0.00049499,120]
[406883892,1772264634641,-226.25199945,0.00049499,120]
[406883893,1772264634706,-150.0,0.00049499,120]
[406883894,1772264634772,-150.0,0.00049499,120]